Cogmind - Beta 15 @@@ ROGUE MODE // 2025.08.05 @ 21:38:03 Player: Btuck Result: Destroyed by D-53 Grenadier with Mini Grenade Launcher Performance ------------- Evolutions (0) 0 Regions Visited (2) 400 Robots Destroyed (27) 135 Value Destroyed (458) 458 Prototype IDs (2) 40 Alien Tech Used (0) 0 Bonus (0) 0 TOTAL SCORE: 1033 Bonus ------- None Cogmind --------- Core Integrity 0/250 Matter 300/300 Energy 99/100 System Corruption 1% Temperature Cool (0) Movement Core (50) Location -10/Mines Parts ------- > --- POWER (1) -------- (None) > --- PROPULSION (2) --- (None) > --- UTILITY (2) ------ (None) > --- WEAPON (2) ------- (None) > --- INVENTORY (5) ---- Light EM Pulse Cannon Light Assault Rifle Mini Grenade Launcher Maul Proton Bomb Trap Peak State ------------ > --- POWER ------------ Ion Engine > --- PROPULSION ------- Aluminum Leg Aluminum Leg > --- UTILITY ---------- Small Storage Unit Seismic Detector > --- WEAPON ----------- Light EM Pulse Cannon Assault Rifle > --- INVENTORY -------- Light Ion Engine Light Treads Light Treads Medium Laser Mini Grenade Launcher Mini Grenade Launcher Maul [Rating: 9] Favorites ----------- Power Ion Engine Engine Ion Engine Propulsion Light Treads Treads Light Treads Leg Aluminum Leg Utility High-capacity Storage Unit Device Seismic Detector Storage High-capacity Storage Unit Weapon Light Cannon Energy Gun Medium Laser Energy Cannon Light EM Pulse Cannon Ballistic Gun Assault Rifle Ballistic Cannon Light Cannon Launcher Mini Grenade Launcher Impact Weapon Maul Build | -11 -10 -10 ------- Run | Yrd Mat Min Slots Evolved . | . . . Power . | . . . Propulsion . | . . . Utility . | . . . Weapon . | . . . Parts Attached 17 | 7 8 2 Power 2 | 1 1 . Engine 2 | 1 1 . Core . | . . . Reactor . | . . . Propulsion 4 | 2 2 . Treads 2 | . 2 . Leg 2 | 2 . . Wheel . | . . . Hover . | . . . Flight . | . . . Utility 4 | 2 1 1 Device 2 | 1 . 1 Storage 2 | 1 1 . Processor . | . . . Hackware . | . . . Protection . | . . . Artifact . | . . . Weapon 7 | 2 4 1 Energy Gun 1 | 1 . . Energy Cannon 1 | . 1 . Ballistic Gun 1 | 1 . . Ballistic Cannon 1 | . 1 . Launcher 2 | . 1 1 Special Weapon . | . . . Impact Weapon 1 | . 1 . Slashing Weapon . | . . . Piercing Weapon . | . . . Special Melee Weapon . | . . . Unidentified Prototypes . | . . . Parts Lost 7 | . 3 4 Power . | . . . Propulsion 2 | . 1 1 Utility 2 | . . 2 Weapon 3 | . 2 1 Highest Loss Streak 3 | . 3 2 To Critical Strikes . | . . . Average Backups 7 | 1 6 8 Power 1 | . 1 1 Propulsion 1 | 1 1 1 Utility . | . . . Weapon 4 | . 3 5 Tool/Special . | . . . Unused Backups 7 | . . 7 Power 1 | . . 1 Propulsion 3 | . . 3 Utility . | . . . Weapon 3 | . . 3 Tool/Special . | . . . Average Slot Usage (%) 97 | . 98 96 Engine 14 | . 14 14 Treads 24 | . 19 27 Leg 3 | . 8 . Device 14 | . 14 14 Storage 14 | . 14 14 Energy Gun 7 | . . 13 Energy Cannon 1 | . 2 . Ballistic Gun 1 | . 3 . Ballistic Cannon 10 | . 8 10 Impact Weapon 4 | . 10 . Peak Build Rating 9 | 7 9 9 Average Rating 7 | 5 8 7 On Entrance 5 | . 7 9 Naked Turns 1 | . . 1 Heaviest Build 52 | 15 52 51 Greatest Support 40 | 20 40 40 Greatest Overweight (x) 4 | . 4 2 Average Overweight (x) . | . . . Largest Inventory Capacity 20 | 8 20 20 Average Capacity 17 | 7 16 19 Most Carried 14 | 3 8 14 Average Carried 8 | 1 7 10 Final Capacity 20 | 8 20 5 Final Carried 7 | 3 7 5 Class Distribution -------------------- 100% | Mutant Dominant Class ---------------- Mutant | -10/Materials Mutant | -10/Mines Resources | -11 -10 -10 ----------- Run | Yrd Mat Min Matter Collected 624 | 285 227 112 Remotely . | . . . Salvage Created 652 | 96 297 259 Parts 54 | 11 31 12 Haulers Intercepted 2 | . 2 . Recyclers Shooed . | . . . Parts Field Recycled . | . . . Retrieved Matter . | . . . Parts Self-Destructed . | . . . Prevented . | . . . Kills | -11 -10 -10 ------- Run | Yrd Mat Min Combat Hostiles Destroyed 17 | . 9 8 Guns 6 | . 1 5 Cannons 2 | . 2 . AOE 8 | . 5 3 Classes Destroyed 9 | 2 6 1 Worker 2 | . 2 . Builder 1 | . 1 . Tunneler 2 | 2 . . Hauler 2 | . 2 . Recycler 2 | 1 . 1 Watcher 3 | . 3 . Swarmer 9 | . 6 3 Grunt 6 | . 3 3 Assembled 2 | . . 2 Best Kill Streak 5 | 3 5 3 Combat Bots Only 4 | . 4 3 Max Kills in Single Turn 3 | 1 3 2 Gunslinging . | . . . Exploded 2 | . 2 2 Melee . | . . . Uniques/NPCs Destroyed . | . . . Combat | -11 -10 -10 -------- Run | Yrd Mat Min Hostile Shots Fired 99 | . 65 34 Missed 22 | . 16 6 Hits 77 | . 49 28 Melee 1 | . . 1 Projectile 76 | . 49 27 AOE 6 | . . 6 Damage Taken 1181 | . 609 572 Core 255 | . 139 116 Absorbed by Shields . | . . . Core Remaining (%) 100 | 100 . . Volleys Fired 66 | 5 32 29 Largest 2 | 2 2 2 Hottest 80 | 70 76 80 Shots Fired 103 | 10 46 47 Gun 51 | 10 14 27 Cannon 45 | . 27 18 Launcher 7 | . 5 2 Special . | . . . Kinetic 50 | 5 27 18 Thermal 32 | 5 . 27 Explosive 7 | . 5 2 Electromagnetic 14 | . 14 . Robot Hit Streak 6 | 6 3 6 Robot Miss Streak 4 | 3 4 3 Penetration Max . | . . . Secondary Targets . | . . . Shots Hit Robots 53 | 6 21 26 Core Hits 39 | 4 19 16 Critical Kills . | . . . Critical Parts Destroyed . | . . . Critical Strikes 5 | . 1 4 Burn 4 | . . 4 Corrupt 1 | . 1 . Melee Attacks 1 | . 1 . Impact 1 | . 1 . Slashing . | . . . Piercing . | . . . Sneak Attacks . | . . . Combat Hostiles . | . . . Follow-up Attacks . | . . . Damage Inflicted 1558 | 70 901 587 Guns 356 | 70 49 237 Cannons 436 | . 297 139 Explosions 715 | . 504 211 Melee 46 | . 46 . Ramming 5 | . 5 . Kinetic 356 | 33 184 139 Thermal 298 | 37 24 237 Explosive 691 | . 480 211 Electromagnetic 162 | . 162 . Impact 46 | . 46 . Slashing . | . . . Piercing . | . . . Highest Corruption 1 | . . 1 Average Corruption 1 | . . 1 Corruption Purged . | . . . Corruption Blocked . | . . . Effects 2 | . . 2 Energy Discharges 2 | . . 2 Overload Shots . | . . . Overflow Damage 78 | . 56 22 Projectiles 1 | . . 1 Explosions 36 | . 15 21 Melee 41 | . 41 . Knockbacks 4 | . 2 2 Impact . | . . . Kinetic 4 | . 2 2 Secondary . | . . . Self-Inflicted Damage 165 | . 104 61 Shots 4 | . 2 2 Rammed 1 | . 1 . Targets Rammed 1 | . 1 . Kicked . | . . . Crushed . | . . . Highest Temperature 235 | 45 235 36 Average Temperature 79 | 23 105 16 Received Heat Transfer 213 | . 123 90 Siege Activations . | . . . Martial Activations . | . . . Shielding Activations . | . . . Robots Disrupted . | . . . Combat Hostiles . | . . . Robots Corrupted 1 | . 1 . Combat Hostiles 1 | . 1 . Parts Fried . | . . . Impact Corruptions 2 | . 2 . Robots Melted . | . . . Combat Hostiles . | . . . Parts Melted 2 | . . 2 Heat Transferred 1160 | 111 50 999 Parts Sabotaged . | . . . Parts Stolen . | . . . Parts Stripped . | . . . Power Chain Reactions 1 | . 1 . Alert | -11 -10 -10 ------- Run | Yrd Mat Min Maximum Alert Level 1 | . 1 . Low Security (%) 91 | 100 78 100 Level 1 8 | . 21 . Level 2 . | . . . Level 3 . | . . . Level 4 . | . . . Level 5 . | . . . High Security . | . . . Max Security . | . . . Peak Influence 255 | 15 255 128 Initial 40 | . . 40 Average 74 | 1 141 31 Influence Increases 639 | 15 411 213 Destroy 0b10 Robot/C 300 | . 180 120 Destroy 0b10 Robot/NC 60 | 15 40 5 Destroy Leader 80 | . 50 30 Trap Triggered on 0b10 10 | . . 10 Successful Hack 15 | . 15 . Disable Machine 60 | . 45 15 Destroy Structure 54 | . 36 18 Lose Combat Pursuer 60 | . 45 15 Influence Decreases 639 | 15 305 319 Entered New Map 66 | . . 66 Time Decay 533 | 15 275 243 Lost Part 40 | . 30 10 Squads Dispatched 1 | . 1 . Investigation . | . . . Extermination . | . . . Reinforcement 1 | . 1 . Assault . | . . . Garrison . | . . . Intercept . | . . . Searches Triggered . | . . . Construction Impeded . | . . . Haulers Reinforced . | . . . Active Scanning Responses . | . . . Cargo Convoy Interrupts . | . . . Stealth | -11 -10 -10 --------- Run | Yrd Mat Min Distress Signals 1 | . 1 . Communications Jammed . | . . . Distress Signals . | . . . Times Spotted 29 | . 16 13 Peak Tracking Total 6 | . 6 3 Tactical Retreats 4 | . 2 2 Traps | -11 -10 -10 ------- Run | Yrd Mat Min Traps Triggered . | . . . Indirectly . | . . . Trap Hack Attempts . | . . . Triggered . | . . . Disarmed . | . . . Reprogrammed . | . . . Reused 1 | . . 1 Traps Extracted . | . . . Installed 1 | . . 1 Triggered 1 | . . 1 Most Traps Carried 5 | . . 5 Machines | -11 -10 -10 ---------- Run | Yrd Mat Min Machines Disabled 4 | . 3 1 Max in Single Turn 1 | . 1 1 Machines Repaired . | . . . Machines Dismantled . | . . . Machines Sabotaged . | . . . Overloaded Fab Kills . | . . . Hacking | -11 -10 -10 --------- Run | Yrd Mat Min Machines Accessed 2 | . 2 . Terminals 2 | . 2 . Fabricators . | . . . Repair Stations . | . . . Recycling Units . | . . . Scanalyzers . | . . . Garrison Access . | . . . Total Hacks 10 | . 10 . Successful 5 | . 5 . Failed 5 | . 5 . Catastrophic . | . . . Database Lockouts . | . . . Manual 5 | . 5 . Terminals 10 | . 10 . Fabricators . | . . . Repair Stations . | . . . Recycling Units . | . . . Scanalyzers . | . . . Garrison Access . | . . . Terminal Hacks 3 | . 3 . Robot Analysis 2 | . 2 . Prototype ID Bank 1 | . 1 . Fabricator Hacks . | . . . Repair Station Hacks . | . . . Recycling Unit Hacks . | . . . Scanalyzer . | . . . Garrison Access Hacks . | . . . Unauthorized Hacks 2 | . 2 . Terminals 2 | . 2 . Botnet 2 | . 2 . Fabricators . | . . . Repair Stations . | . . . Recycling Units . | . . . Scanalyzers . | . . . Garrison Access . | . . . Data Cores Recovered . | . . . Used . | . . . Hacking Detections 2 | . 2 . Full Trace Events 2 | . 2 . Feedback Events . | . . . Feedback Blocked . | . . . Robot Schematics Acquired . | . . . Robots Built . | . . . Authchips . | . . . Time . | . . . Total Robot Build Rating . | . . . Part Schematics Acquired . | . . . Parts Built . | . . . Authchips . | . . . Time . | . . . Total Part Build Rating . | . . . Parts Repaired . | . . . Time . | . . . Parts Recycled . | . . . Recycled Matter . | . . . Retrieved Matter . | . . . Retrieved Components . | . . . Parts Scanalyzed . | . . . Part Schematics Acquired . | . . . Parts Damaged . | . . . Bothacking | -11 -10 -10 ------------ Run | Yrd Mat Min Used RIF Installer . | . . . Robots Hacked . | . . . Non-combat . | . . . Combat . | . . . Robot Hacks Applied . | . . . Relay Couplers Released . | . . . Fabnet Peak Effective % . | . . . Robots Rewired . | . . . Allies Hacked . | . . . Hacks Repelled . | . . . Allies | -11 -10 -10 -------- Run | Yrd Mat Min Total Allies . | . . . Largest Group . | . . . Highest-Rated Group . | . . . Highest-Rated Ally . | . . . Total Orders . | . . . Ally Attacks . | . . . Total Damage . | . . . Kills . | . . . Allies Corrupted . | . . . Allies Melted . | . . . Intel | -11 -10 -10 ------- Run | Yrd Mat Min Active Infowar (turns) 887 | 30 681 176 Seismic 887 | 30 681 176 Robot Analysis Total 2 | . 2 . Derelict Logs Recovered 1 | . . 1 Drone Launches . | . . . Drone Recoveries . | . . . Exploration | -11 -10 -10 ------------- Run | Yrd Mat Min Turns Passed 1673 | 112 681 880 Spaces Moved 662 | 71 266 325 Core 5 | 3 . 2 Treads 499 | . 176 323 Legs 158 | 68 90 . Wheels . | . . . Hover . | . . . Flight . | . . . Fastest Speed 50 | 50 120 50 Average Speed 212 | 117 204 239 Slowest Speed 400 | 120 400 320 Overloaded Moves . | . . . Propulsion Burnouts . | . . . Robots Hopped . | . . . Potential Cave-ins . | . . . Cave-ins Triggered . | . . . Exploration Rate (%) 42 | 4 51 72 Regions Visited 2 Branch Regions 1 Pre-discovered Areas 1 | . . 1 Known Exits Taken . | . . . Unknown Exits Taken 2 | 1 1 . Scrap Searched 1 | . . 1 Spaces Dug . | . . . Terrain Destroyed 62 | . 39 23 Melee . | . . . Projectile . | . . . AOE 62 | . 39 23 Terrain Rammed . | . . . Walls Destroyed . | . . . Machines Disabled . | . . . Actions | -11 -10 -10 --------- Run | Yrd Mat Min Total 820 | 86 354 380 Wait 44 | 1 32 11 Move 660 | 70 265 325 Hop . | . . . Pick Up 19 | 3 7 9 Fast Attach 8 | 7 1 . Attach 6 | . 5 1 Detach 3 | . 3 . Swap 7 | . 4 3 Drop 4 | . 3 1 Fire 66 | 5 32 29 Melee 1 | . 1 . Ram . | . . . Kick . | . . . Crush 1 | . 1 . Escape Stasis . | . . . Rewire . | . . . Trap 1 | . . 1 Miscellaneous . | . . . Route ------- -11/Scrapyard -10/Materials (discovered 2 exits: [*Min] / [*Sub]) -10/Mines History --------- Turn | Location | Event 2 | -11/Scrapyard | Met Revision 17 4 | -11/Scrapyard | Discovered new exit (range 16) 113 | -11/Scrapyard | Entered Materials 288 | -10/Materials | Core integrity fell below 50% 307 | -10/Materials | Build established: Mutant 312 | -10/Materials | Lost 3 parts (1n2w) 518 | -10/Materials | Discovered new exit (range 15) 522 | -10/Materials | Discovered new exit (range 15) 794 | -10/Materials | Entered Mines 1147 | -10/Mines | Found a hidden stash of uninstalled traps 1448 | -10/Mines | Assembled infested the area 1453 | -10/Mines | Assisted by a Guerilla fighting off Assembled 1673 | -10/Mines | Released all parts (4) 1674 | -10/Mines | Core integrity fell below 20% 1674 | -10/Mines | Destroyed by D-53 Grenadier with Mini Grenade Launcher Last Messages --------------- 01491_ System corrupted by crushing effect (+1). 01493_ as-87592 destroyed. 01495_ K-01 Serf collects debris. 01501_ System corrupted: Energy discharge (-69). 01503_ as-55790 destroyed. 01515_ Acquired 1 matter. 01543_ K-01 Serf collects debris. 01565_ Acquired derelict log, extracted data. World map updated: -10/Materials. 01594_ System corrupted: Energy discharge (-50). 01668_ Lgt. Treads destroyed. 01668_ U-05 Engineer destroyed. 01668_ T-07 Excavator destroyed. 01670_ Heat Sink destroyed. 01673_ U-05 Engineer lays Concrete. 01673_ Released Med. Laser. 01673_ Released Ion Engine. 01673_ Released Lgt. Treads. 01673_ Released Hcp. Storage Unit. 01674_ U-05 Engineer lays Concrete. Map ----- +----------------------------------------------------+ | ??????????????????????????????????????? | | ??????????????????????????????????????? | | ??????????????????????????????????????? | | ??????????????????????????????????????? | | ??????????????????????????????????????? | | ??????????????????????????????????????? | | ??????????????????????????????????????? | | ???????????????????????????? ?????????? | | ???????????????????????????? #????????? | | ???????????????????????????? ????????? | | ##???????????????????####?## ????????? | | ##?????????????????? ## ????????? | | ######?????????????? ????????? | | ###???????????? ????????? | | #????????????? d#????????? | | #?????????????? ##???????? | | #?????????????? #???????? | | ### #??????####????? ud ##??????? | | #?## ##????## ##???## ##?????? | | #??## #????# #??## ##????? | | #???# #????# #??# #????? | | #???# #???## #??# & #????? | | ##???# ##???# ##?# ]*[ #????? | | ????### ####### """ #?# &*[!= #????? | | ???? ?# ## % % """ ### &== #????? | | ?### ## ## #### """ @ = ##????? | | ?# #??#%k"" ##?????? | | ######??#% #### ####??????? | | ????????# ##??######?????????? | | ?????????# ###??????????????????? | | ?????????# #????????????????????? | | ### #?????????# #########????????????? | | ??# #?????????# |!= #????????????? | | ??# ########### [% #????????????? | | ??# ########## #????????????? | | ### ######## #######??# ##???????????? | | ##????# #??# ##??????????? | | ############ #??# ##?????????? | | ### #????# #?## ###???????? | | ??# #???# ### ##??????? | | ??# #???# ## ##?????? | | ??## ##???# #?????? | | ???## ######????#### #?????? | | ????####??????####??# ##?????? | | ?????????????## ##?# ###??????? | | ???????###### #### ##????????? | | #???????# #?## #?????????? | | #???????# #### ##?????????? | | ????????# ## #??????????? | | ????????## ## #??????????? | +----------------------------------------------------+ Best States ------------- Heat Dissipation 35 Energy Generation 10 Energy Capacity 250 Matter Stores 300 Matter Capacity 300 Sight Range 16 Terrain Scan Density 10 Evasion (%) 55 Recoil Reduction 2 Item Schematics ----------------- None Robot Schematics ------------------ None Fabricated ------------ Nothing Repaired ---------- Nothing Alien Tech Used ----------------- None Achievements -------------- None Challenges ------------ None Game ------ Seed StormConcussiveTrap Manual? 0 Play Time 00:12:29 Cumulative 87.8 hours Start 2025.08.05 @ 21:29:11 End 2025.08.05 @ 21:38:03 Sessions 1 Manual Loads 0 Difficulty Rogue Special Mode None Game No. 117 Rogue 117 Adventurer 0 Explorer 0 Win Type - Total 1 Types 1/0/0/0/0/0/0/0/0/0 Lore% 46 Gallery% 44 Achievement% 41 Wizard Run 0 Options --------- Layout 2 ASCII 0 Keyboard 1 Movement Numpad Keybinds 0 Fullscreen 1 Font 32/Tamsyn Map View 50x44 Zoom Use 0% Tactical HUD 1 Map Filters NONE Filters NONE Steam 1 RUN: ee373d57-0718-433d-a8a3-31510bb33880